{"text_format":"1","workbook":"xlsx","n_sheets":7,"sheets":["Общий перечень обозначений","ТМНК.753613","ТМНК.305318","ТМНК.754176","ТНМК.711151","Шаблон","Лист1"],"not_rendered":{"charts":0,"images":0,"macros":1,"external_links":0,"defined_names":5,"comments":1,"pivot_tables":0},"unopened":[],"bounds":{"document_bytes":16777216,"sheet_cells":100000,"rows_first":2000,"rows_last":500,"rows_between":2000,"halvings":0,"cell_chars":16384,"cell_head_chars":4096},"cells_cut":0,"cells_raw":0,"read":"whole","date_system":"1900"}

{"sheet":"Общий перечень обозначений","index":0,"n_rows":17,"n_cols":2,"rows_kept":17,"cut":false,"hidden":false,"merged":[]}
[null,"Ведомость обозначений"]
["№","Обозначение"]
[{"$f":"ROW()-ROW($A$2)","v":1},"ТМНК.713361"]
[{"$f":"ROW()-ROW($A$2)","v":2},"ТМНК.753551"]
[3,"ТМНК.753612"]
[4,"ТМНК.753613"]
[5,"ТМНК.758281"]
[6,"ТМНК.758353"]
[7,"ТМНК.758441"]
[8,"ТМНК.712356"]
[9,"ТМНК.711145"]
[10,"ТМНК.711141"]
[11,"ТМНК.061262"]
[12,"ТНМК.711221"]
[13,"ТНМК.711151"]
[14,"ТМНК.754176"]
[15,"ТМНК.305318"]

{"sheet":"ТМНК.753613","index":1,"n_rows":4,"n_cols":12,"rows_kept":4,"cut":false,"hidden":false,"merged":[[0,0,0,7],[0,9,0,11],[1,4,1,5],[1,7,1,8],[1,9,1,10]]}
["ВВЕДИТЕ НАИМЕНОВАНИЕ РАЗДЕЛА ПО КЛАССИФИКАТОРУ ЕСКД",null,null,null,null,null,null,null,null,"ТМНК.753613"]
[null,"Порядковый","Вид",null,"Кто занял",null,null,"Кто присвоил",null,"Дата"]
["Обозначение","номер","документа","Наименование","Фамилия","Подразделение","Примечание","Фамилия2","Подразделение3","Занято","Сдано","Входимость"]
[{"$f":"IF(Таблица27[номер]=0, 0, $J$1)","v":"ТМНК.753613"},{"$f":"500+ROW()-ROW($A$3)","v":501}]

{"sheet":"ТМНК.305318","index":2,"n_rows":4,"n_cols":13,"rows_kept":4,"cut":false,"hidden":false,"merged":[[0,1,0,7],[0,9,0,11],[1,4,1,5],[1,7,1,8],[1,9,1,10]]}
[null,"1. УСТРОЙСТВА ЗАЩИТНЫЕ, ОБСЛУЖИВАНИЯ РАБОЧИХ МЕСТ И МЕХАНИЗМОВ, ИНДИВИДУАЛЬНОЙ ЗАЩИТЫ, УПЛОТНИТЕЛЬНЫЕ, ЗАКРЫВАЮЩИЕ И ИХ ЭЛЕМЕНТЫ, УСТРОЙСТВА ОБРАМЛЯЮЩИЕ, ОБЛИЦОВОЧНЫЕ, ПОЯСНИТЕЛЬНЫЕ, УКАЗАТЕЛЬНЫЕ, ОТСЧЕТНЫЕ, ЛИСТЫ, КОМПЛЕКТЫ\n2. УСТРОЙСТВА УПЛОТНИТЕЛЬНЫЕ, ЗАКРЫВАЮЩИЕ И ИХ ЭЛЕМЕНТЫ\n3. Элементы устройств уштотнительных\n4. комбинированые",null,null,null,null,null,null,null,"ТМНК.305318"]
[null,"Порядковый","Вид",null,"Кто занял",null,null,"Кто присвоил",null,"Дата"]
["Обозначение","номер","документа","Наименование","Фамилия","Подразделение","Примечание","Фамилия2","Подразделение3","Занято","Сдано","Входимость"]
[{"$f":"IF(Таблица2[номер]=0, 0, $J$1)","v":"ТМНК.305318"},{"$f":"500+ROW()-ROW($A$3)","v":501},null,"Уплотнительное бандажированное кольцо","Малыш","Группа разработки КД",null,"Бахидув","Группа управления конфигурацией","2015-08-27",null,null,"огр"]

{"sheet":"ТМНК.754176","index":3,"n_rows":4,"n_cols":12,"rows_kept":4,"cut":false,"hidden":false,"merged":[[0,1,0,7],[0,9,0,11],[1,4,1,5],[1,7,1,8],[1,9,1,10]]}
[null,"1. Детали-тела вращения и/или не тела вращения, кулачковые карданные, с элементами зацепления, арматуры, санитарно-техн разветвленные, пружинные, ручки, уплотнительные, отсчетные, пояснительные, маркировочные, защитные, литеры, оптические, электрорадиоэлектронные, крепежные.\n2. Уплотнительные, отсчетные, пояснительные, маркировочные, защитные, посуда.\n3. Уплотнительные.\n4. Манжеты, кольца.\n5. Кольца прямоуг. в попереч. сеч.",null,null,null,null,null,null,null,"ТМНК.754176"]
[null,"Порядковый","Вид",null,"Кто занял",null,null,"Кто присвоил",null,"Дата"]
["Обозначение","номер","документа","Наименование","Фамилия","Подразделение","Примечание","Фамилия2","Подразделение3","Занято","Сдано","Входимость"]
[{"$f":"IF(Таблица2[номер]=0, 0, $J$1)","v":"ТМНК.754176"},{"$f":"500+ROW()-ROW($A$3)","v":501},null,"Кольцо уплотнительное","Малыш","Группа разработки КД",null,"Бахидув","Группа управления конфигурацией","2015-08-27"]

{"sheet":"ТНМК.711151","index":4,"n_rows":4,"n_cols":13,"rows_kept":4,"cut":false,"hidden":false,"merged":[[0,1,0,7],[0,9,0,11],[1,4,1,5],[1,7,1,8],[1,9,1,10]]}
[null,"1. Детали-тела вращения типа колец, дисков, стержней, шкивов, втулок, блоков, стаканов, колонок, штоков, валов, осей и др.\n2. С l до 0,5d включ. (кольца,диски,тарелки,крышки,фланцы,катушки,шкивы,блоки и др.) с наружной поверхностью цилиндрической.\n3. Без закрытых уступов,гладкой,без наружной резьбы.\n4. С центр.сквозным отв.,круг.в попереч.сеч.,цилиндр.без резьбы,ступенч.\n5. Без кольцевых пазов на торцах,без пазов и шлицев на нар.поверхн. без отв. вне оси дет.",null,null,null,null,null,null,null,"ТНМК.711251"]
[null,"Порядковый","Вид",null,"Кто занял",null,null,"Кто присвоил",null,"Дата"]
["Обозначение","номер","документа","Наименование","Фамилия","Подразделение","Примечание","Фамилия2","Подразделение3","Занято","Сдано","Входимость"]
[{"$f":"IF(Таблица2[номер]=0, 0, $J$1)","v":"ТНМК.711251"},{"$f":"500+ROW()-ROW($A$3)","v":501},null,"Стакан","Аюпов","Группа разработки КД",null,"Барановская","Группа управления конфигурацией","2015-08-27",null,null,"Стенд"]

{"sheet":"Шаблон","index":5,"n_rows":4,"n_cols":12,"rows_kept":4,"cut":false,"hidden":false,"merged":[[0,0,0,7],[0,9,0,11],[1,4,1,5],[1,7,1,8],[1,9,1,10]]}
["ВВЕДИТЕ НАИМЕНОВАНИЕ РАЗДЕЛА ПО КЛАССИФИКАТОРУ ЕСКД",null,null,null,null,null,null,null,null,"ВВЕДИТЕ НОМЕР ПО ЕСКД"]
[null,"Порядковый","Вид",null,"Кто занял",null,null,"Кто присвоил",null,"Дата"]
["Обозначение","номер","документа","Наименование","Фамилия","Подразделение","Примечание","Фамилия2","Подразделение3","Занято","Сдано","Входимость"]
[{"$f":"IF(Таблица2[номер]=0, 0, $J$1)","v":"ВВЕДИТЕ НОМЕР ПО ЕСКД"},{"$f":"500+ROW()-ROW($A$3)","v":501}]

{"sheet":"Лист1","index":6,"n_rows":0,"n_cols":0,"rows_kept":0,"cut":false,"hidden":false,"merged":[]}